bitfinex/quotes_SOLUSD_20250917
["timestamp","ask_amount","ask_price","bid_price","bid_amount"]
[1758115034304,4.53348734,235.29,235.27,0.06]
[1758115035023,6.06379917,235.29,235.27,0.06]
[1758115035413,4.53348734,235.29,235.27,0.06]
[1758115036703,6.06379917,235.29,235.27,0.06]
[1758115037436,4.53348734,235.29,235.27,0.06]
[1758115037658,6.06379917,235.29,235.27,0.06]
[1758115038335,4.53348734,235.29,235.27,0.06]
[1758115038660,0.28341297,235.29,235.27,0.06]
[1758115040037,4.53332092,235.3,235.27,0.06]
[1758115041566,4.53332092,235.3,235.27,0.73]
[1758115042261,4.53332092,235.3,235.27,0.06]
[1758115043649,0.03,235.31,235.28,0.67]
[1758115044278,0.03,235.31,235.3,1.53031183]
[1758115044754,0.03,235.31,235.3,2.20031183]
[1758115045349,0.03,235.31,235.3,12.5714529]
[1758115045664,0.03,235.34,235.3,23.62117665]
[1758115045869,26.14216157,235.36,235.33,1.53031183]
[1758115046036,26.14216157,235.36,235.35,1.53031183]
[1758115046354,26.14216157,235.36,235.35,2.20031183]
[1758115047737,26.14216157,235.36,235.35,6.44930269]
[1758115047938,26.56864628,235.36,235.35,6.44930269]
[1758115051588,26.56864628,235.36,235.35,85.94930269]
[1758115051780,4.91177902,235.36,235.35,85.94930269]
[1758115052670,0.42648471,235.36,235.35,85.94930269]
[1758115053677,26.56864628,235.36,235.35,85.94930269]
[1758115055971,0.14216157,235.36,235.35,85.94930269]
[1758115056169,0.03,235.38,235.35,96.57177985]
[1758115056356,0.03,235.38,235.37,1.53031183]
[1758115056555,0.03,235.38,235.37,81.03031183]
[1758115056764,0.03,235.38,235.37,81.74031183]
[1758115058084,0.03,235.38,235.37,85.98894164]
[1758115058388,0.17216157,235.38,235.37,85.98894164]
[1758115058562,39.76775558,235.38,235.37,85.98894164]
[1758115060685,0.14216157,235.37,235.35,4.24883629]
[1758115060889,0.71,235.36,235.34,1.53031183]
[1758115061061,0.71,235.35,235.34,1.53031183]
[1758115061563,0.71,235.35,235.31,4.2495328]
[1758115061767,0.71,235.34,235.31,4.2495328]
[1758115061984,0.71,235.34,235.32,1.53031183]
[1758115062182,0.71,235.34,235.33,1.53031183]
[1758115063387,0.85216157,235.37,235.33,5.7796638]
[1758115063589,0.71,235.36,235.33,5.7796638]
[1758115063772,0.71,235.35,235.34,1.53031183]
[1758115064377,0.85216157,235.37,235.34,1.53031183]
[1758115064685,0.71,235.36,235.34,1.53031183]
[1758115065867,0.71,235.36,235.31,4.24971314]
[1758115066196,0.14216157,235.37,235.31,4.24971314]
[1758115066197,0.71,235.35,235.31,4.24971314]
[1758115066493,0.71,235.34,235.32,1.53031183]
[1758115066681,0.71,235.36,235.32,1.53031183]
[1758115066991,0.71,235.35,235.32,1.53031183]
[1758115067706,4.39089183,235.37,235.31,4.24971314]
[1758115067913,26.0,235.34,235.33,1.53031183]
[1758115068090,26.71,235.34,235.33,1.53031183]
[1758115068768,26.0,235.35,235.33,1.53031183]
[1758115068971,26.71,235.35,235.33,1.53031183]
[1758115069773,0.71,235.35,235.33,1.53031183]
[1758115070098,0.71,235.34,235.3,0.06]
[1758115071802,4.95925758,235.34,235.3,0.06]
[1758115071972,0.71,235.33,235.3,1.59031183]
[1758115072172,0.71,235.32,235.3,1.59031183]
[1758115072373,0.71,235.31,235.3,1.59031183]
[1758115072998,32.06271303,235.36,235.3,5.84020558]
[1758115072999,0.71,235.35,235.3,5.84020558]
[1758115073300,0.71,235.34,235.32,1.53031183]
[1758115073680,30.24898823,235.36,235.32,1.53031183]
[1758115073889,0.71,235.35,235.32,1.53031183]
[1758115074399,0.71,235.35,235.32,5.77980947]
[1758115074575,0.71,235.35,235.32,1.53031183]
[1758115074986,26.0,235.36,235.31,4.24970304]
[1758115074987,30.24882396,235.36,235.31,4.24970304]
[1758115075198,0.71,235.34,235.32,1.53031183]
[1758115075399,0.71,235.34,235.31,5.78001487]
[1758115075596,26.71,235.36,235.32,1.53031183]
[1758115075798,0.71,235.35,235.32,1.53031183]
[1758115076312,26.0,235.36,235.32,5.7797949]
[1758115076603,26.72,235.36,235.32,6.4897949]
[1758115076783,26.0,235.34,235.33,1.53031183]
[1758115077377,0.72,235.36,235.33,1.53031183]
[1758115077600,26.0,235.37,235.35,1.53031183]
[1758115077903,26.86216157,235.37,235.35,1.53031183]
[1758115078204,0.86216157,235.37,235.35,1.53031183]
[1758115078392,0.86216157,235.37,235.34,5.77946744]
[1758115079099,0.86216157,235.37,235.31,0.71]
[1758115079100,0.14216157,235.37,235.31,0.71]
[1758115079301,0.72,235.36,235.33,1.53031183]
[1758115079504,0.14216157,235.37,235.33,1.53031183]
[1758115079505,0.72,235.35,235.33,1.53031183]
[1758115079888,26.72,235.35,235.33,1.53031183]
[1758115080200,26.72,235.35,235.32,4.24953255]
[1758115080201,26.0,235.34,235.32,5.77984438]
[1758115080404,26.72,235.34,235.3,0.06]
[1758115080917,0.72,235.33,235.3,0.06]
[1758115081204,26.72,235.34,235.31,1.53031183]
[1758115081435,0.72,235.33,235.31,1.53031183]
[1758115082812,30.24900021,235.35,235.31,1.53031183]
[1758115083129,30.24900021,235.35,235.31,4.24969293]
[1758115083130,26.72,235.35,235.31,4.24969293]
[1758115083416,26.0,235.36,235.32,1.53031183]
[1758115083600,26.0,235.35,235.34,1.53031183]
[1758115084196,26.0,235.35,235.31,4.99969293]
[1758115084411,26.0,235.35,235.34,1.53031183]
[1758115084623,26.0,235.35,235.32,1.53031183]
[1758115085124,31.10079387,235.37,235.32,2.22031183]
[1758115085326,0.68,235.36,235.32,1.53031183]
[1758115085628,0.68,235.36,235.32,2.22031183]
[1758115085795,26.0,235.35,235.33,1.53031183]
[1758115086706,26.0,235.35,235.32,4.93943883]
[1758115087017,26.68,235.34,235.32,5.77975066]
[1758115087195,26.0,235.34,235.32,5.77975066]
[1758115088300,26.0,235.34,235.32,1.53031183]
[1758115089418,26.0,235.34,235.32,5.77978083]
[1758115089832,26.0,235.34,235.32,6.64073747]
[1758115089996,26.0,235.34,235.32,2.39126847]
[1758115090399,0.68,235.36,235.33,2.39126847]
[1758115090599,26.17216157,235.37,235.33,3.08126847]
[1758115090908,26.85216157,235.37,235.33,3.08126847]
[1758115091218,26.0,235.35,235.33,2.39126847]
[1758115091802,26.68,235.35,235.33,2.39126847]
[1758115092224,26.0,235.35,235.34,2.39126847]
[1758115093622,26.0,235.35,235.33,2.39126847]
[1758115093825,0.68,235.34,235.31,2.45126847]
[1758115093999,26.0,235.35,235.31,6.70097856]
[1758115094324,0.68,235.33,235.31,6.70097856]
[1758115094506,0.68,235.33,235.32,2.39126847]
[1758115094708,26.0,235.34,235.32,2.39126847]
[1758115095022,26.0,235.34,235.33,2.39126847]
[1758115096121,0.68,235.36,235.32,2.39126847]
[1758115096306,26.0,235.34,235.32,2.39126847]
[1758115098610,0.68,235.33,235.31,0.06]
[1758115099112,0.68,235.32,235.31,0.06]
[1758115100502,0.68,235.34,235.31,0.06]
[1758115100700,26.0,235.35,235.31,6.70096113]
[1758115100900,26.68,235.35,235.31,6.70096113]
[1758115101323,26.0,235.35,235.33,2.39126847]
[1758115101621,26.0,235.35,235.34,2.39126847]
[1758115101826,26.0,235.35,235.34,3.08126847]
[1758115102715,26.0,235.35,235.34,7.33043988]
[1758115106016,0.03,235.36,235.34,7.33043988]
[1758115106214,0.03,235.36,235.35,3.50616755]
[1758115106709,0.03,235.36,235.35,7.75515841]
[1758115107833,0.17216157,235.37,235.35,7.75515841]
[1758115108039,0.17216157,235.37,235.36,3.08126847]
[1758115109923,0.17216157,235.37,235.36,7.3300788]
[1758115109924,0.03,235.37,235.36,7.3300788]
[1758115111145,0.03,235.37,235.36,86.8300788]
[1758115116646,0.03,235.41,235.36,97.45210463]
[1758115116955,0.03,235.41,235.4,2.39126847]
[1758115117457,0.03,235.41,235.4,7.34935683]
[1758115118553,0.03,235.41,235.4,86.84935683]
[1758115122920,0.03,235.41,235.4,89.2406253]
[1758115123223,0.28432314,235.48,235.4,99.8608462]
[1758115123425,0.28432314,235.48,235.42,4.78253694]
[1758115123625,0.28432314,235.48,235.42,84.28253694]
[1758115123846,0.14216157,235.48,235.42,84.99253694]
[1758115124144,0.14216157,235.48,235.42,81.89126847]
[1758115124145,0.71,235.46,235.42,81.89126847]
[1758115124322,0.71,235.45,235.42,81.89126847]
[1758115124817,0.71,235.45,235.42,86.13899593]
[1758115125015,0.14216157,235.48,235.42,86.13899593]
[1758115125246,0.71,235.46,235.42,86.13899593]
[1758115125621,0.42648471,235.49,235.42,86.13899593]
[1758115125622,0.71,235.48,235.42,86.84899593]
[1758115126151,0.03,235.46,235.42,89.2402644]
[1758115126632,0.03,235.46,235.42,99.85958306]
[1758115126951,0.03,235.46,235.45,6.6384547]
[1758115127335,0.03,235.46,235.45,7.3484547]
[1758115128626,0.03,235.46,235.45,9.04880965]
[1758115130651,0.03,235.46,235.45,92.03830418]
[1758115132556,0.74,235.46,235.45,1.70035495]
[1758115132854,0.74,235.46,235.45,4.09162342]
[1758115133344,0.74,235.46,235.45,1.70035495]
[1758115133725,0.74,235.46,235.44,6.6384765]
[1758115133922,0.71,235.45,235.44,4.24720803]
[1758115134125,0.71,235.45,235.44,2.39126847]
[1758115134557,0.14216157,235.44,235.43,1.70078874]
[1758115134849,26.85216157,235.44,235.43,1.70078874]
[1758115135030,26.0,235.43,235.4,2.39126847]
[1758115135350,30.95759983,235.43,235.38,2.39126847]
[1758115135646,0.71,235.42,235.39,2.39126847]
[1758115135841,0.71,235.41,235.39,2.39126847]
[1758115136046,0.71,235.4,235.39,2.39126847]
[1758115138032,0.71,235.4,235.36,0.06]
[1758115138231,0.71,235.4,235.36,2.45126847]
[1758115138552,0.66,235.39,235.37,2.39126847]
[1758115138722,0.66,235.38,235.37,2.39126847]
[1758115138923,0.66,235.38,235.36,2.45126847]
[1758115139229,0.66,235.37,235.36,0.06]
[1758115140957,26.66,235.37,235.36,0.06]
[1758115142049,30.90862981,235.37,235.36,0.06]
[1758115143157,0.66,235.37,235.36,0.06]
[1758115143353,26.0,235.38,235.36,0.06]
[1758115143658,26.66,235.39,235.37,2.39126847]
[1758115144352,4.24772906,235.42,235.36,4.84253694]
[1758115144353,0.68,235.38,235.36,4.84253694]
[1758115144655,26.0,235.39,235.36,2.45126847]
[1758115144957,0.68,235.37,235.36,0.06]
[1758115146851,26.68,235.4,235.36,6.69999396]
[1758115147049,0.68,235.39,235.36,6.69999396]
[1758115147252,26.0,235.4,235.36,6.69999396]
[1758115147451,0.68,235.39,235.36,6.69999396]
[1758115147658,0.68,235.38,235.36,6.69999396]
[1758115147956,0.68,235.38,235.36,0.06]
[1758115148148,0.68,235.37,235.36,0.06]
[1758115149052,3.07126847,235.37,235.36,0.06]
[1758115150072,7.31989828,235.37,235.36,0.06]
[1758115150566,30.92862981,235.37,235.36,0.06]
[1758115151750,26.0,235.38,235.36,0.06]
[1758115151963,0.68,235.39,235.36,0.06]
[1758115152470,0.68,235.38,235.36,0.06]
[1758115153270,0.68,235.37,235.36,0.06]
[1758115153645,26.68,235.37,235.36,0.06]
[1758115154160,0.68,235.37,235.36,0.06]
[1758115156539,30.24853685,235.38,235.36,0.06]
[1758115156857,30.92853685,235.38,235.36,0.06]
[1758115157242,0.68,235.38,235.36,0.06]
[1758115159852,0.68,235.38,235.36,1.59004113]
[1758115161241,26.0,235.41,235.37,2.19004113]
[1758115161441,26.0,235.41,235.4,1.53004113]
[1758115161863,26.68,235.44,235.4,1.53004113]
[1758115162053,0.68,235.43,235.4,1.53004113]
[1758115162660,26.68,235.42,235.39,1.53004113]
[1758115162860,2.21004113,235.41,235.36,4.36914622]
[1758115163059,0.96341297,235.4,235.36,4.36914622]
[1758115163247,26.96341297,235.4,235.36,4.36914622]
[1758115163453,0.68,235.39,235.36,0.06]
[1758115163655,26.28341297,235.4,235.36,2.25004113]
[1758115163854,26.0,235.4,235.38,1.53004113]
[1758115164956,26.0,235.4,235.39,1.53004113]
[1758115165750,26.03,235.43,235.39,2.19004113]
[1758115166048,26.03,235.43,235.42,1.53004113]
[1758115166257,26.03,235.43,235.41,1.53004113]
[1758115166456,0.03,235.43,235.42,1.53004113]
[1758115166654,0.03,235.43,235.42,2.19004113]
[1758115166859,0.03,235.43,235.42,6.43776859]
[1758115167443,0.03,235.43,235.4,4.90791554]
[1758115167649,26.03,235.43,235.42,1.53004113]
[1758115167840,26.03,235.43,235.41,1.53004113]
[1758115168046,26.71,235.43,235.39,12.75917066]
[1758115168271,0.68,235.42,235.39,14.28921179]
[1758115168472,26.03,235.43,235.39,1.53004113]
[1758115168764,0.71,235.43,235.39,1.53004113]
[1758115168948,0.71,235.43,235.4,1.53004113]
[1758115169356,0.03,235.43,235.4,1.53004113]
[1758115169859,0.03,235.43,235.41,1.53004113]
[1758115171373,0.71,235.43,235.4,1.53004113]
[1758115171550,0.03,235.43,235.4,1.53004113]
[1758115172574,0.03,235.43,235.4,2.19004113]
[1758115173560,0.03,235.43,235.41,1.53004113]
[1758115173953,0.03,235.43,235.42,1.53004113]
[1758115174360,0.03,235.43,235.42,2.23004113]
[1758115175662,0.03,235.43,235.42,6.47776859]
[1758115175969,0.03,235.43,235.42,4.24772746]
[1758115176258,0.03,235.43,235.42,1.53004113]
[1758115177050,0.03,235.43,235.41,1.53004113]
[1758115177266,0.7,235.43,235.41,1.53004113]
[1758115177470,0.03,235.43,235.41,1.53004113]
[1758115178477,0.03,235.43,235.42,1.53004113]
[1758115178970,0.03,235.43,235.42,2.23004113]
[1758115180864,0.03,235.43,235.42,1.53004113]
[1758115181274,0.03,235.43,235.41,1.53004113]
[1758115182161,0.03,235.43,235.41,2.23004113]
[1758115182858,0.03,235.43,235.41,1.53004113]
[1758115183062,0.03,235.43,235.41,2.23004113]
[1758115183460,0.03,235.43,235.41,1.53004113]
[1758115184985,0.03,235.43,235.4,1.53004113]
[1758115185371,0.03,235.43,235.4,2.23004113]
[1758115185778,0.03,235.43,235.41,2.23004113]
[1758115187189,0.03,235.43,235.42,1.53004113]
[1758115187482,0.03,235.43,235.41,2.23004113]
[1758115187875,0.03,235.43,235.39,0.7]
[1758115188084,0.03,235.43,235.4,2.23004113]
[1758115188686,0.03,235.43,235.4,1.53004113]
[1758115188885,0.67,235.42,235.36,0.06]
[1758115189089,26.0,235.41,235.36,14.34866915]
[1758115189280,0.03,235.43,235.4,1.53004113]
[1758115189485,0.03,235.43,235.41,2.23004113]
[1758115189790,0.03,235.43,235.39,1.53004113]
[1758115189992,4.27755434,235.43,235.39,1.53004113]
[1758115190197,4.27755434,235.43,235.4,0.7]
[1758115190401,4.27755434,235.43,235.39,1.53004113]
[1758115190565,4.27755434,235.43,235.39,2.23004113]
[1758115192102,4.27755434,235.43,235.4,0.7]
[1758115192396,4.27755434,235.43,235.38,6.47844883]
[1758115192593,4.27755434,235.43,235.39,0.7]
[1758115194010,0.03,235.43,235.4,0.7]
[1758115194681,0.03,235.43,235.41,0.7]
[1758115194880,26.03,235.43,235.41,0.7]
[1758115195297,26.03,235.43,235.39,0.7]
[1758115195797,26.0,235.42,235.38,5.77844883]
[1758115195982,0.67,235.42,235.38,5.77844883]
[1758115196287,4.27763128,235.43,235.39,0.7]
[1758115196880,4.27763128,235.43,235.4,0.67]
[1758115197190,4.27763128,235.43,235.38,5.77844883]
[1758115197397,4.97763128,235.43,235.38,6.44844883]
[1758115197580,4.97763128,235.43,235.39,0.67]
[1758115197769,0.03,235.43,235.39,0.67]
[1758115198989,4.2775551,235.43,235.39,0.67]
[1758115199472,4.2775551,235.43,235.39,2.20004113]
[1758115199792,4.9775551,235.43,235.39,2.20004113]
[1758115199990,4.9775551,235.43,235.38,0.06]
[1758115200194,4.9775551,235.43,235.38,2.26004113]
[1758115200393,0.7,235.42,235.38,0.06]
[1758115200686,4.2775551,235.43,235.38,0.73]
[1758115200893,0.7,235.42,235.38,0.06]
[1758115201070,0.7,235.41,235.38,0.06]
[1758115202105,26.98341297,235.4,235.38,0.06]
[1758115202469,26.28341297,235.4,235.38,0.06]
[1758115202672,26.0,235.4,235.38,0.06]
[1758115204193,4.24811533,235.4,235.38,0.06]
[1758115204404,4.90811533,235.4,235.38,0.06]
[1758115204904,4.24811533,235.4,235.38,0.06]
[1758115205594,26.0,235.4,235.38,0.06]
[1758115205897,26.0,235.4,235.38,0.76]
[1758115206092,26.0,235.4,235.38,2.29004113]
[1758115206983,26.0,235.4,235.38,0.06]
[1758115207181,26.66,235.39,235.38,0.06]
[1758115207499,26.0,235.39,235.38,0.06]
[1758115207802,26.66,235.4,235.38,0.06]
[1758115208803,31.1916818,235.39,235.38,0.06]
[1758115212278,5.1916818,235.39,235.38,0.06]
[1758115213188,7.58277252,235.39,235.38,0.06]
[1758115214291,7.58277252,235.39,235.38,1e-08]
[1758115216791,32.92277252,235.39,235.38,1e-08]
[1758115216995,30.5316818,235.39,235.38,1e-08]
[1758115217510,4.5316818,235.39,235.38,1e-08]
[1758115217715,26.0,235.4,235.38,0.70000001]
[1758115218488,26.0,235.4,235.39,0.7]
[1758115218695,26.0,235.39,235.38,1e-08]
[1758115218894,26.0,235.39,235.38,0.70000001]
[1758115220508,30.24826883,235.39,235.38,1e-08]
[1758115220690,30.24826883,235.39,235.38,0.70000001]
[1758115220889,26.0,235.39,235.38,0.70000001]
[1758115221607,26.0,235.42,235.38,3.09109073]
[1758115221810,26.0,235.42,235.4,2.39109072]
[1758115222013,26.0,235.42,235.41,0.7]
[1758115222810,26.03,235.43,235.41,0.7]
[1758115223009,26.03,235.43,235.42,0.7]
[1758115223391,0.03,235.43,235.42,0.7]
[1758115224694,0.03,235.43,235.42,3.09109072]
[1758115225998,0.69,235.43,235.38,1e-08]
[1758115226208,26.0,235.41,235.38,1e-08]
[1758115226397,28.67450369,235.41,235.38,1e-08]
[1758115226592,3.05109072,235.4,235.38,1e-08]
[1758115226798,2.67450369,235.39,235.38,1e-08]
[1758115227416,7.58277252,235.39,235.38,1e-08]
[1758115230404,4.5316818,235.39,235.38,1e-08]
[1758115230906,5.1916818,235.39,235.38,1e-08]
[1758115231492,4.5316818,235.39,235.38,1e-08]
[1758115231694,5.1916818,235.39,235.38,1e-08]
[1758115232911,4.5316818,235.39,235.38,1e-08]
[1758115234999,5.2216818,235.39,235.38,1e-08]
[1758115236009,7.61277252,235.39,235.38,1e-08]
[1758115236400,6.92277252,235.39,235.38,1e-08]
[1758115237315,7.61277252,235.39,235.38,1e-08]
[1758115240218,6.92277252,235.39,235.38,1e-08]
[1758115240431,30.5316818,235.39,235.38,0.65000001]
[1758115240917,26.0,235.41,235.38,3.04109073]
[1758115241114,26.0,235.41,235.39,3.04109072]
[1758115241313,26.0,235.41,235.4,0.65]
[1758115241513,0.31341297,235.43,235.4,0.65]
[1758115241709,0.03,235.43,235.4,3.04109072]
[1758115242030,0.03,235.43,235.41,0.65]
[1758115242621,26.03,235.43,235.41,0.65]
[1758115242799,26.03,235.43,235.39,2.39109072]
[1758115243005,26.03,235.43,235.4,0.65]
[1758115243203,26.0,235.42,235.41,0.65]
[1758115243826,0.31341297,235.43,235.41,0.65]
[1758115244050,0.03,235.43,235.42,3.04109072]
[1758115249528,26.03,235.43,235.4,4.24824951]
[1758115250016,30.24772746,235.42,235.38,3.04109073]
[1758115250327,30.93772746,235.42,235.38,3.04109073]
[1758115250524,30.24772746,235.42,235.38,3.04109073]
[1758115251016,31.22114043,235.42,235.38,1e-08]
[1758115251215,30.53114043,235.42,235.38,3.04109073]
[1758115251431,31.22114043,235.42,235.38,3.04109073]
[1758115251726,30.53114043,235.42,235.38,0.65000001]
[1758115252030,30.53114043,235.42,235.39,2.39109072]
[1758115252204,30.53114043,235.42,235.38,0.65000001]
[1758115252405,30.53114043,235.42,235.39,2.39109072]
[1758115253330,26.0,235.42,235.39,2.39109072]
[1758115253527,26.0,235.42,235.41,2.39109072]
[1758115253733,4.27755097,235.43,235.41,3.04109072]
[1758115253932,0.03,235.43,235.42,3.04109072]
[1758115258633,0.03,235.43,235.42,2.39109072]
[1758115258930,27.02341297,235.43,235.41,4.24844753]
[1758115259133,0.71,235.42,235.41,4.24844753]
[1758115259333,26.0,235.42,235.41,4.24844753]
[1758115259724,26.0,235.42,235.39,3.07109072]
[1758115260035,26.0,235.42,235.39,2.39109072]
[1758115260209,26.0,235.42,235.39,3.07109072]
[1758115261036,30.2479079,235.41,235.39,2.39109072]
[1758115261236,26.0,235.4,235.39,3.07109072]
[1758115261435,4.27772363,235.43,235.39,3.07109072]
[1758115261736,26.0,235.42,235.39,3.07109072]
[1758115261933,26.0,235.41,235.39,2.39109072]
[1758115262238,26.0,235.41,235.38,2.39109073]
[1758115262439,26.0,235.41,235.38,3.07109073]
[1758115263224,26.0,235.41,235.39,0.68]
[1758115263634,26.0,235.41,235.39,3.07109072]
[1758115264138,26.0,235.42,235.39,3.10109072]
[1758115264319,0.03,235.43,235.4,2.39109072]
[1758115264521,0.03,235.43,235.42,2.39109072]
[1758115264720,0.03,235.43,235.42,0.71]
[1758115264955,26.03,235.43,235.41,2.39109072]
[1758115265320,26.03,235.43,235.42,2.39109072]
[1758115265917,31.27097412,235.43,235.39,6.63953825]
[1758115266134,31.27097412,235.43,235.39,4.24844753]
[1758115266135,0.71,235.42,235.39,4.24844753]
[1758115266353,3.38450369,235.41,235.38,1e-08]
[1758115266660,2.39109072,235.39,235.38,1e-08]
[1758115267024,3.10109072,235.39,235.38,1e-08]
[1758115267242,7.34935955,235.39,235.38,1e-08]
[1758115267446,7.63277252,235.39,235.38,1e-08]
[1758115273653,5.2416818,235.39,235.38,1e-08]
[1758115273865,7.63277252,235.39,235.38,1e-08]
[1758115274168,6.77201464,235.39,235.38,1e-08]
[1758115275464,4.5316818,235.39,235.38,1e-08]
[1758115277065,6.77201464,235.39,235.38,1e-08]
[1758115278170,5.2416818,235.39,235.38,1e-08]
[1758115278367,4.5316818,235.39,235.38,1e-08]
[1758115278671,4.5316818,235.39,235.38,0.71000001]
[1758115279173,4.5316818,235.39,235.38,1e-08]
[1758115281268,6.77201464,235.39,235.38,1e-08]
[1758115282457,5.2416818,235.39,235.38,1e-08]
[1758115283076,4.5316818,235.39,235.38,1e-08]
[1758115284569,0.03,235.41,235.38,2.24033285]
[1758115284869,0.03,235.41,235.39,0.71]
[1758115285259,0.03,235.41,235.4,0.71]
[1758115285466,0.03,235.41,235.4,2.24033284]
[1758115289463,0.03,235.41,235.4,3.94170032]
[1758115291966,0.03,235.41,235.4,1.70136748]
[1758115292153,26.03,235.41,235.4,1.70136748]
[1758115292354,26.03,235.41,235.39,1.53033284]
[1758115292772,26.03,235.41,235.38,2.24033285]
[1758115292965,26.03,235.41,235.39,2.41136748]
[1758115293476,26.03,235.41,235.4,2.24033284]
[1758115294166,0.03,235.41,235.4,2.24033284]
[1758115294373,0.03,235.41,235.4,6.4884212]
[1758115296782,0.03,235.43,235.42,7.6516642]
[1758115297166,0.03,235.43,235.42,2.21033284]
[1758115297482,0.03,235.44,235.42,3.74066568]
[1758115297687,0.03,235.44,235.43,3.74066568]
[1758115298065,0.03,235.44,235.43,8.3316642]
[1758115298289,0.03,235.44,235.43,2.38057182]
[1758115298484,0.03,235.44,235.43,3.91090466]
[1758115300091,0.03,235.44,235.43,10.03223602]
[1758115301675,0.03,235.44,235.43,14.27978306]
[1758115305595,0.03,235.44,235.43,93.77978306]
[1758115308287,0.03,235.46,235.45,1.53033284]
[1758115308682,0.03,235.46,235.45,2.21033284]
[1758115308873,0.03,235.48,235.45,81.71033284]
[1758115309076,0.03,235.51,235.43,20.987746]
[1758115309077,0.03,235.51,235.47,1.53033284]
[1758115309306,0.03,235.51,235.5,1.53033284]
[1758115309593,0.03,235.51,235.5,5.77661734]
[1758115309774,0.03,235.51,235.5,6.45661734]
[1758115310299,0.03,235.51,235.5,9.97100727]
[1758115311183,0.69,235.6,235.5,20.58671852]
[1758115311384,0.69,235.6,235.59,1.53033284]
[1758115311603,0.69,235.62,235.59,1.53033284]
[1758115311792,4.24358158,235.65,235.61,1.53033284]
[1758115312495,4.24329385,235.67,235.64,1.53033284]
[1758115312695,0.69,235.66,235.64,1.53033284]
[1758115312904,0.1,235.68,235.65,1.53033284]
[1758115313206,0.1,235.68,235.66,1.53033284]
[1758115313514,0.1,235.68,235.67,1.53033284]
[1758115314079,0.1,235.68,235.66,1.53033284]
[1758115314380,0.79,235.68,235.67,1.53033284]
[1758115315369,0.79,235.68,235.66,1.53033284]
[1758115315577,0.79,235.68,235.66,7.74983772]
[1758115316601,0.1,235.68,235.66,6.21950488]
[1758115316902,0.69,235.67,235.66,6.21950488]
[1758115317101,0.69,235.67,235.64,1.53033284]
[1758115317606,0.69,235.67,235.65,5.773219]
[1758115318102,0.69,235.67,235.65,4.24288616]
[1758115318480,0.66,235.66,235.57,0.67]
[1758115318683,0.66,235.66,235.6,1.53033284]
[1758115318882,0.66,235.65,235.6,1.53033284]
[1758115319091,0.66,235.64,235.6,1.53033284]
[1758115319300,0.66,235.64,235.61,4.34311026]
[1758115319596,0.66,235.63,235.61,4.34311026]
[1758115320582,0.66,235.63,235.61,5.8734431]
[1758115321100,0.66,235.62,235.61,4.34311026]
[1758115321487,2.19033284,235.62,235.52,3.4379601]
[1758115321692,2.47374581,235.61,235.54,1.53033284]
[1758115321896,0.66,235.6,235.54,14.58945001]
[1758115322086,0.66,235.59,235.54,1.53033284]
[1758115322288,0.66,235.58,235.55,5.77419617]
[1758115322508,4.24494731,235.58,235.55,5.77419617]
[1758115322688,0.66,235.57,235.55,5.77419617]
[1758115322903,0.66,235.57,235.53,1.53033284]
[1758115323212,0.66,235.56,235.54,4.24494731]
[1758115323817,0.66,235.55,235.54,4.24494731]
[1758115324021,0.66,235.55,235.52,1.53033284]
[1758115324596,4.52836028,235.58,235.53,1.53033284]
[1758115324798,0.28341297,235.58,235.54,0.7]
[1758115325022,0.28341297,235.58,235.55,1.53033284]
[1758115325319,4.52827949,235.58,235.54,1.53033284]
[1758115325510,0.28341297,235.58,235.54,1.53033284]